[Event "*** Titled Tuesday Blitz"]
[Site "Chess.com"]
[Date "2019.04.02"]
[Round "3"]
[White "DrVitman"]
[Black "moro182"]
[Result "0-1"]
[WhiteElo "2632"]
[BlackElo "2767"]
[TimeControl "180+2"]
[EndTime "14:37:53 PDT"]
[Termination "moro182 won on time"]

1. d4 {[%clk 0:03:01.9]} 1... d5 {[%clk 0:03:00.7]} 2. c4 {[%clk 0:03:01.1]}
2... e6 {[%clk 0:02:59.7]} 3. Nc3 {[%clk 0:03:01.7]} 3... Nf6 {[%clk 0:03:00.9]}
4. cxd5 {[%clk 0:03:02.7]} 4... exd5 {[%clk 0:03:02.8]} 5. Bg5 {[%clk
0:03:03.3]} 5... c6 {[%clk 0:03:04]} 6. e3 {[%clk 0:03:04.6]} 6... h6 {[%clk
0:03:03.8]} 7. Bh4 {[%clk 0:03:01.4]} 7... Be6 {[%clk 0:03:04.7]} 8. Bd3 {[%clk
0:03:00.9]} 8... Nbd7 {[%clk 0:03:05.7]} 9. Nge2 {[%clk 0:03:00.6]} 9... g5
{[%clk 0:03:05.9]} 10. Bg3 {[%clk 0:03:00.4]} 10... Nh5 {[%clk 0:03:07.4]} 11.
Qc2 {[%clk 0:02:52]} 11... Nxg3 {[%clk 0:03:07.9]} 12. Nxg3 {[%clk 0:02:49.8]}
12... h5 {[%clk 0:03:09.2]} 13. Bf5 {[%clk 0:02:47]} 13... Qf6 {[%clk 0:03:09]}
14. Bxe6 {[%clk 0:02:46.6]} 14... fxe6 {[%clk 0:03:10.9]} 15. Qe2 {[%clk
0:02:33.2]} 15... h4 {[%clk 0:03:09.2]} 16. Nh5 {[%clk 0:02:33.7]} 16... Qg6
{[%clk 0:03:09.6]} 17. g4 {[%clk 0:02:33.5]} 17... O-O-O {[%clk 0:03:07.2]} 18.
h3 {[%clk 0:02:23.1]} 18... Bd6 {[%clk 0:03:07.6]} 19. O-O-O {[%clk 0:02:23.1]}
19... e5 {[%clk 0:03:06.9]} 20. dxe5 {[%clk 0:02:14.9]} 20... Bxe5 {[%clk
0:03:08.8]} 21. Qc2 {[%clk 0:02:13.1]} 21... Qxc2+ {[%clk 0:03:08.6]} 22. Kxc2
{[%clk 0:02:13.9]} 22... Rhf8 {[%clk 0:03:08.9]} 23. Rdf1 {[%clk 0:02:11.3]}
23... Rf3 {[%clk 0:03:09]} 24. Kd2 {[%clk 0:02:08.3]} 24... Rdf8 {[%clk
0:03:08.4]} 25. Ke2 {[%clk 0:02:06.4]} 25... Nc5 {[%clk 0:03:09.3]} 26. Nd1
{[%clk 0:01:52.2]} 26... Ne4 {[%clk 0:03:08.9]} 27. b3 {[%clk 0:01:52.3]} 27...
Kd7 {[%clk 0:03:06.4]} 28. Nf4 {[%clk 0:01:48.7]} 28... R3xf4 {[%clk 0:02:49.4]}
29. exf4 {[%clk 0:01:49.3]} 29... Rxf4 {[%clk 0:02:51.3]} 30. Re1 {[%clk
0:01:37.4]} 30... Bd4 {[%clk 0:02:49.7]} 31. Rhf1 {[%clk 0:01:37.3]} 31... b5
{[%clk 0:02:46.7]} 32. Kd3 {[%clk 0:01:30.1]} 32... Bb6 {[%clk 0:02:45.3]} 33.
Ke2 {[%clk 0:01:24.6]} 33... a5 {[%clk 0:02:45.5]} 34. Ne3 {[%clk 0:01:24.8]}
34... Ke6 {[%clk 0:02:46.1]} 35. Rc1 {[%clk 0:01:23.6]} 35... c5 {[%clk
0:02:42.9]} 36. Nf5 {[%clk 0:01:24.2]} 36... c4 {[%clk 0:02:42.2]} 37. f3 {[%clk
0:01:24.2]} 37... Nc5 {[%clk 0:02:38.9]} 38. Rfd1 {[%clk 0:01:22.1]} 38... Nd3
{[%clk 0:02:36.9]} 39. Rc2 {[%clk 0:01:14.1]} 39... Ne5 {[%clk 0:02:19.7]} 40.
bxc4 {[%clk 0:01:11.7]} 40... Nxc4 {[%clk 0:02:07]} 41. Rd3 {[%clk 0:00:58]}
41... a4 {[%clk 0:01:58.3]} 42. Ng7+ {[%clk 0:00:58.3]} 42... Ke5 {[%clk
0:01:54.9]} 43. Nh5 {[%clk 0:00:50.9]} 43... Rf7 {[%clk 0:01:53.6]} 44. f4+
{[%clk 0:00:51.2]} 44... gxf4 {[%clk 0:01:55.5]} 45. g5 {[%clk 0:00:45.2]} 45...
Rf5 {[%clk 0:01:42.7]} 46. Nf6 {[%clk 0:00:22.7]} 46... Ke6 {[%clk 0:01:43.7]}
47. Nxd5 {[%clk 0:00:13.2]} 47... Rxd5 {[%clk 0:01:40.2]} 48. Rxd5 {[%clk
0:00:15.1]} 48... Kxd5 {[%clk 0:01:42.1]} 49. g6 {[%clk 0:00:16]} 49... Ke6
{[%clk 0:01:43.6]} 50. Kf3 {[%clk 0:00:15.3]} 50... Kf6 {[%clk 0:01:44]} 51. Rg2
{[%clk 0:00:15.6]} 51... Ne5+ {[%clk 0:01:44.6]} 52. Kxf4 {[%clk 0:00:15.9]}
52... Nxg6+ {[%clk 0:01:46.5]} 53. Ke4 {[%clk 0:00:13]} 53... b4 {[%clk
0:01:43.4]} 54. Rb2 {[%clk 0:00:13.1]} 54... Bc5 {[%clk 0:01:44.1]} 55. Rc2
{[%clk 0:00:14.2]} 55... Be7 {[%clk 0:01:44.2]} 56. Rc6+ {[%clk 0:00:13.6]}
56... Kf7 {[%clk 0:01:45.3]} 57. Kf5 {[%clk 0:00:13.3]} 57... Nf8 {[%clk
0:01:46.1]} 58. Ra6 {[%clk 0:00:07]} 58... a3 {[%clk 0:01:46.8]} 59. Ke5 {[%clk
0:00:04.6]} 59... Nd7+ {[%clk 0:01:46]} 60. Kd5 {[%clk 0:00:05]} 60... Nc5
{[%clk 0:01:44.9]} 61. Rb6 {[%clk 0:00:05.5]} 61... Na4 {[%clk 0:01:45.2]} 62.
Rb7 {[%clk 0:00:05]} 62... Nc3+ {[%clk 0:01:47.1]} 63. Kc4 {[%clk 0:00:06]}
63... Nxa2 {[%clk 0:01:47.7]} 64. Kb3 {[%clk 0:00:05.2]} 64... Nc1+ {[%clk
0:01:48.5]} 65. Kc2 {[%clk 0:00:06.6]} 65... Ne2 {[%clk 0:01:50.4]} 66. Kd3
{[%clk 0:00:07]} 66... Nf4+ {[%clk 0:01:51.6]} 67. Ke4 {[%clk 0:00:08.9]} 67...
Nxh3 {[%clk 0:01:53.5]} 68. Ra7 {[%clk 0:00:10]} 68... b3 {[%clk 0:01:54.1]} 69.
Kf5 {[%clk 0:00:11.9]} 69... b2 {[%clk 0:01:55.3]} 70. Kg4 {[%clk 0:00:13.6]}
70... Nf2+ {[%clk 0:01:56.3]} 71. Kf3 {[%clk 0:00:14.2]} 71... b1=Q {[%clk
0:01:56.2]} 72. Ra4 {[%clk 0:00:13.5]} 72... Qb3+ {[%clk 0:01:56.8]} 73. Ke2
{[%clk 0:00:11.8]} 73... Qxa4 {[%clk 0:01:56.5]} 74. Kd2 {[%clk 0:00:13.7]}
74... Qd4+ {[%clk 0:01:46.5]} 75. Ke2 {[%clk 0:00:13.9]} 75... Qd3+ {[%clk
0:01:43.3]} 76. Ke1 {[%clk 0:00:13.5]} 76... a2 {[%clk 0:01:41.4]} 77. Kxf2
{[%clk 0:00:12.6]} 77... a1=Q {[%clk 0:01:41.2]} 78. Kg2 {[%clk 0:00:02.9]}
78... Qaf1+ {[%clk 0:01:40.9]} 0-1

[Event "*** Titled Tuesday Blitz"]
[Site "Chess.com"]
[Date "2019.04.02"]
[Round "3"]
[White "Margency"]
[Black "Firouzja2003"]
[Result "0-1"]
[WhiteElo "2694"]
[BlackElo "3089"]
[TimeControl "180+2"]
[EndTime "14:37:54 PDT"]
[Termination "Firouzja2003 won by resignation"]

1. e4 {[%clk 0:03:01.9]} 1... c5 {[%clk 0:03:00.4]} 2. Nf3 {[%clk 0:03:02.8]}
2... d6 {[%clk 0:03:01.6]} 3. d4 {[%clk 0:03:04]} 3... cxd4 {[%clk 0:03:03.5]}
4. Nxd4 {[%clk 0:03:05.8]} 4... Nf6 {[%clk 0:03:05.2]} 5. Nc3 {[%clk 0:03:07.4]}
5... a6 {[%clk 0:03:06.9]} 6. g3 {[%clk 0:03:09]} 6... e5 {[%clk 0:03:07.8]} 7.
Nb3 {[%clk 0:03:10.3]} 7... Be7 {[%clk 0:03:08.3]} 8. a4 {[%clk 0:03:11.1]} 8...
O-O {[%clk 0:03:09]} 9. Bg2 {[%clk 0:03:12.4]} 9... Nc6 {[%clk 0:03:09.7]} 10.
O-O {[%clk 0:03:11.9]} 10... Nb4 {[%clk 0:03:10.8]} 11. a5 {[%clk 0:03:09.5]}
11... Bd7 {[%clk 0:03:11.7]} 12. Be3 {[%clk 0:03:10.6]} 12... Rc8 {[%clk
0:03:04.4]} 13. Bb6 {[%clk 0:03:08.2]} 13... Qe8 {[%clk 0:03:05.5]} 14. Qd2
{[%clk 0:03:06.7]} 14... Be6 {[%clk 0:03:04.9]} 15. Rac1 {[%clk 0:02:58.8]}
15... Rc4 {[%clk 0:03:04.7]} 16. Nd5 {[%clk 0:02:44.4]} 16... Bxd5 {[%clk
0:03:01.9]} 17. exd5 {[%clk 0:02:45.3]} 17... Qb5 {[%clk 0:02:23.1]} 18. Rfd1
{[%clk 0:02:37]} 18... Rfc8 {[%clk 0:02:12.2]} 19. Na1 {[%clk 0:02:37.7]} 19...
Ne4 {[%clk 0:01:17.7]} 20. Qe2 {[%clk 0:02:00.6]} 20... Nf6 {[%clk 0:01:17.2]}
21. Qd2 {[%clk 0:01:45.9]} 21... Ne4 {[%clk 0:01:16.9]} 22. Qe1 {[%clk
0:01:36.7]} 22... f5 {[%clk 0:01:17.9]} 23. Bf1 {[%clk 0:01:25.8]} 23... Ng5
{[%clk 0:01:15.5]} 24. Qe3 {[%clk 0:01:18.4]} 24... Nxd5 {[%clk 0:00:47.5]} 25.
Bxc4 {[%clk 0:01:04.4]} 25... Qxc4 {[%clk 0:00:39.4]} 26. Qb3 {[%clk 0:00:57.5]}
26... Nxb6 {[%clk 0:00:23.3]} 27. axb6 {[%clk 0:00:58.3]} 27... Kf7 {[%clk
0:00:24.1]} 28. Kg2 {[%clk 0:00:55.7]} 28... Ke6 {[%clk 0:00:24.7]} 29. c3
{[%clk 0:00:52.6]} 29... d5 {[%clk 0:00:24]} 30. Qxc4 {[%clk 0:00:53.3]} 30...
Rxc4 {[%clk 0:00:21.3]} 31. Nc2 {[%clk 0:00:52.4]} 31... Bc5 {[%clk 0:00:18]}
32. h4 {[%clk 0:00:43.1]} 32... Ne4 {[%clk 0:00:18.8]} 33. Ne3 {[%clk
0:00:43.9]} 33... Bxe3 {[%clk 0:00:18.2]} 34. fxe3 {[%clk 0:00:45.2]} 34... Rc6
{[%clk 0:00:20.1]} 35. Kf3 {[%clk 0:00:44.5]} 35... Rxb6 {[%clk 0:00:20.1]} 36.
Rc2 {[%clk 0:00:46.1]} 36... Rc6 {[%clk 0:00:20.2]} 37. g4 {[%clk 0:00:43.7]}
37... b5 {[%clk 0:00:20.5]} 38. gxf5+ {[%clk 0:00:44.6]} 38... Kxf5 {[%clk
0:00:21.4]} 39. Rxd5 {[%clk 0:00:45.4]} 39... Rh6 {[%clk 0:00:17.3]} 40. Rh2
{[%clk 0:00:43.1]} 40... g5 {[%clk 0:00:17.4]} 41. Rd8 {[%clk 0:00:38.1]} 41...
g4+ {[%clk 0:00:14.4]} 42. Kg2 {[%clk 0:00:34.6]} 42... Rc6 {[%clk 0:00:15.9]}
43. Rf8+ {[%clk 0:00:33.8]} 43... Ke6 {[%clk 0:00:16.8]} 44. h5 {[%clk 0:00:28]}
44... b4 {[%clk 0:00:17.2]} 45. cxb4 {[%clk 0:00:29]} 45... Rc2+ {[%clk
0:00:18.2]} 46. Kg1 {[%clk 0:00:30.3]} 46... Rc1+ {[%clk 0:00:19.9]} 47. Rf1
{[%clk 0:00:30.9]} 47... Rc4 {[%clk 0:00:19.7]} 48. Rh4 {[%clk 0:00:30]} 48...
Ng5 {[%clk 0:00:20]} 49. Kg2 {[%clk 0:00:29.1]} 49... Rxb4 {[%clk 0:00:18]} 50.
Kg3 {[%clk 0:00:29]} 50... Ne4+ {[%clk 0:00:17.8]} 51. Kg2 {[%clk 0:00:26]}
51... Rxb2+ {[%clk 0:00:19]} 52. Kg1 {[%clk 0:00:27.6]} 52... Nd2 {[%clk
0:00:19.4]} 53. Rxg4 {[%clk 0:00:22]} 53... Nxf1 {[%clk 0:00:20.5]} 54. Kxf1
{[%clk 0:00:23.7]} 54... Rh2 {[%clk 0:00:22]} 55. Ra4 {[%clk 0:00:22.9]} 55...
Rxh5 {[%clk 0:00:22.8]} 56. Rxa6+ {[%clk 0:00:21.5]} 56... Kf5 {[%clk
0:00:24.2]} 57. Kf2 {[%clk 0:00:22.8]} 57... Rh3 {[%clk 0:00:22.4]} 58. Ra4
{[%clk 0:00:22.7]} 58... h5 {[%clk 0:00:23]} 59. Rb4 {[%clk 0:00:23.7]} 59... h4
{[%clk 0:00:18.7]} 60. Ra4 {[%clk 0:00:24.7]} 60... Rh2+ {[%clk 0:00:20]} 61.
Kf3 {[%clk 0:00:24.9]} 61... e4+ {[%clk 0:00:21.5]} 62. Rxe4 {[%clk 0:00:20.2]}
62... Rh3+ {[%clk 0:00:23.4]} 63. Kg2 {[%clk 0:00:21.7]} 63... Rg3+ {[%clk
0:00:25]} 0-1

[Event "*** Titled Tuesday Blitz"]
[Site "Chess.com"]
[Date "2019.04.02"]
[Round "3"]
[White "Robin-Side"]
[Black "ChessQueen"]
[Result "1-0"]
[WhiteElo "2569"]
[BlackElo "2667"]
[TimeControl "180+2"]
[EndTime "14:37:54 PDT"]
[Termination "Robin-Side won by resignation"]

1. d4 {[%clk 0:03:01.9]} 1... Nf6 {[%clk 0:03:00]} 2. Nc3 {[%clk 0:03:02.9]}
2... d5 {[%clk 0:02:57]} 3. e4 {[%clk 0:03:01.1]} 3... Nxe4 {[%clk 0:02:49.2]}
4. Nxe4 {[%clk 0:03:01.8]} 4... dxe4 {[%clk 0:02:50.3]} 5. Bc4 {[%clk
0:03:03.7]} 5... g6 {[%clk 0:02:43.4]} 6. Be3 {[%clk 0:02:59.8]} 6... Bg7 {[%clk
0:02:44.3]} 7. Qd2 {[%clk 0:02:51.3]} 7... Nc6 {[%clk 0:02:42.5]} 8. O-O-O
{[%clk 0:02:51.1]} 8... O-O {[%clk 0:02:31.4]} 9. Ne2 {[%clk 0:02:37.3]} 9...
Be6 {[%clk 0:01:54.7]} 10. Bxe6 {[%clk 0:02:34.2]} 10... fxe6 {[%clk 0:01:55.5]}
11. Kb1 {[%clk 0:02:31.2]} 11... a5 {[%clk 0:01:49.6]} 12. Nc3 {[%clk
0:02:29.7]} 12... Nb4 {[%clk 0:01:48.9]} 13. a3 {[%clk 0:02:26.2]} 13... Nd5
{[%clk 0:01:39.6]} 14. Nxe4 {[%clk 0:02:27]} 14... b5 {[%clk 0:01:40.8]} 15. Nc5
{[%clk 0:02:23.5]} 15... Qd6 {[%clk 0:01:38.6]} 16. h4 {[%clk 0:02:14.2]} 16...
a4 {[%clk 0:01:31.8]} 17. h5 {[%clk 0:02:11]} 17... b4 {[%clk 0:01:32.9]} 18.
hxg6 {[%clk 0:02:10.2]} 18... hxg6 {[%clk 0:01:33.7]} 19. Bh6 {[%clk 0:02:04.1]}
19... Rf7 {[%clk 0:00:39.1]} 20. Bxg7 {[%clk 0:02:04.8]} 20... Rxg7 {[%clk
0:00:40.4]} 21. Qh6 {[%clk 0:02:05.3]} 21... Kf7 {[%clk 0:00:40.6]} 22. Ne4
{[%clk 0:01:44.2]} 22... Qf4 {[%clk 0:00:15]} 23. Ng5+ {[%clk 0:01:45]} 23...
Kf6 {[%clk 0:00:16.4]} 24. Rd3 {[%clk 0:01:34.9]} 24... Qxg5 {[%clk 0:00:17.5]}
25. Rf3+ {[%clk 0:01:31.9]} 25... Qf5 {[%clk 0:00:19]} 26. Rxf5+ {[%clk
0:00:57.2]} 26... exf5 {[%clk 0:00:20.1]} 27. Qh2 {[%clk 0:00:58.4]} 27... Rd8
{[%clk 0:00:15]} 28. Qe5+ {[%clk 0:00:54.4]} 28... Kf7 {[%clk 0:00:16.2]} 29.
axb4 {[%clk 0:00:52.5]} 29... Rd6 {[%clk 0:00:10.7]} 30. c4 {[%clk 0:00:37]}
30... Nf6 {[%clk 0:00:10.8]} 31. Re1 {[%clk 0:00:22.9]} 31... Kf8 {[%clk
0:00:11.7]} 32. f3 {[%clk 0:00:22.2]} 32... Rh7 {[%clk 0:00:11]} 33. Qc5 {[%clk
0:00:15.4]} 33... Ne8 {[%clk 0:00:09.8]} 34. d5 {[%clk 0:00:15.2]} 34... g5
{[%clk 0:00:10.2]} 35. Re5 {[%clk 0:00:14.1]} 35... Rf6 {[%clk 0:00:11.1]} 36.
Re6 {[%clk 0:00:11.6]} 36... Rh1+ {[%clk 0:00:10.9]} 37. Ka2 {[%clk 0:00:12.4]}
37... Rh2 {[%clk 0:00:09.9]} 38. Qg1 {[%clk 0:00:09.7]} 38... Rhh6 {[%clk
0:00:10.1]} 39. Rxf6+ {[%clk 0:00:10.6]} 39... Rxf6 {[%clk 0:00:12]} 40. Qe3
{[%clk 0:00:10.7]} 40... f4 {[%clk 0:00:12.4]} 41. Qa7 {[%clk 0:00:11.2]} 41...
Rd6 {[%clk 0:00:12.1]} 42. Qxa4 {[%clk 0:00:11.5]} 42... Rh6 {[%clk 0:00:13.2]}
43. Qc2 {[%clk 0:00:10.9]} 43... Nd6 {[%clk 0:00:13.4]} 44. c5 {[%clk
0:00:10.6]} 44... Nf7 {[%clk 0:00:14.5]} 45. Qf5 {[%clk 0:00:10.7]} 45... Ra6+
{[%clk 0:00:15.2]} 46. Kb3 {[%clk 0:00:11]} 46... Ra8 {[%clk 0:00:17.1]} 47. Qg6
{[%clk 0:00:09.6]} 47... Rb8 {[%clk 0:00:17.5]} 48. Qc6 {[%clk 0:00:09.6]} 48...
Rc8 {[%clk 0:00:18]} 49. Qb7 {[%clk 0:00:09.6]} 49... Rd8 {[%clk 0:00:18.9]} 50.
Qxc7 {[%clk 0:00:04.2]} 50... Rxd5 {[%clk 0:00:19.9]} 51. Qc8+ {[%clk 0:00:05]}
51... Kg7 {[%clk 0:00:20.6]} 52. b5 {[%clk 0:00:06.3]} 52... Ne5 {[%clk
0:00:20.8]} 53. b6 {[%clk 0:00:06.8]} 53... Rd3+ {[%clk 0:00:22]} 54. Kc2 {[%clk
0:00:07.8]} 54... Re3 {[%clk 0:00:22.2]} 55. b7 {[%clk 0:00:08.3]} 55... Re2+
{[%clk 0:00:22.7]} 56. Kc3 {[%clk 0:00:08.6]} 56... Re3+ {[%clk 0:00:23.8]} 57.
Kd2 {[%clk 0:00:08.7]} 57... Nc4+ {[%clk 0:00:24.4]} 58. Kc2 {[%clk 0:00:10]}
58... Re2+ {[%clk 0:00:25.4]} 59. Kc3 {[%clk 0:00:11.3]} 59... Nxb2 {[%clk
0:00:21.1]} 60. b8=Q {[%clk 0:00:12.3]} 60... Nd1+ {[%clk 0:00:15]} 61. Kd3
{[%clk 0:00:10.4]} 1-0

[Event "*** Titled Tuesday Blitz"]
[Site "Chess.com"]
[Date "2019.04.02"]
[Round "3"]
[White "2165149677570"]
[Black "rubhani"]
[Result "1-0"]
[WhiteElo "2368"]
[BlackElo "2467"]
[TimeControl "180+2"]
[EndTime "14:37:57 PDT"]
[Termination "2165149677570 won by resignation"]

1. e4 {[%clk 0:03:01.9]} 1... c6 {[%clk 0:03:00.7]} 2. d4 {[%clk 0:03:00.9]}
2... d5 {[%clk 0:03:02.6]} 3. exd5 {[%clk 0:03:01.1]} 3... cxd5 {[%clk
0:03:03.7]} 4. c4 {[%clk 0:03:03]} 4... Nf6 {[%clk 0:03:05]} 5. Nc3 {[%clk
0:03:04.4]} 5... e6 {[%clk 0:03:06.4]} 6. Nf3 {[%clk 0:03:05.3]} 6... Bb4 {[%clk
0:03:07.4]} 7. cxd5 {[%clk 0:03:06.7]} 7... Nxd5 {[%clk 0:03:05.5]} 8. Bd2
{[%clk 0:03:08.1]} 8... O-O {[%clk 0:03:05.7]} 9. Bd3 {[%clk 0:03:09.5]} 9...
Nc6 {[%clk 0:03:06.9]} 10. O-O {[%clk 0:03:10.9]} 10... Nf6 {[%clk 0:03:05.8]}
11. a3 {[%clk 0:03:09.6]} 11... Be7 {[%clk 0:03:05.9]} 12. Bf4 {[%clk
0:03:08.5]} 12... b6 {[%clk 0:03:00]} 13. Rc1 {[%clk 0:03:02.5]} 13... Bb7
{[%clk 0:03:01]} 14. Bb1 {[%clk 0:02:56.7]} 14... Rc8 {[%clk 0:02:38.9]} 15. Qd3
{[%clk 0:02:42.6]} 15... g6 {[%clk 0:02:35.6]} 16. Rfd1 {[%clk 0:02:36]} 16...
Qd7 {[%clk 0:02:02.5]} 17. Bh6 {[%clk 0:02:24.2]} 17... Rfd8 {[%clk 0:01:58.9]}
18. h4 {[%clk 0:02:07.6]} 18... Na5 {[%clk 0:01:09.3]} 19. Ne5 {[%clk
0:02:01.7]} 19... Qe8 {[%clk 0:01:10.3]} 20. Ba2 {[%clk 0:01:43.6]} 20... Nd7
{[%clk 0:00:49]} 21. Qg3 {[%clk 0:01:11.4]} 21... Nxe5 {[%clk 0:00:49.5]} 22.
Qxe5 {[%clk 0:01:13.3]} 22... Bf8 {[%clk 0:00:39.3]} 23. Bg5 {[%clk 0:00:57.7]}
23... Rd7 {[%clk 0:00:35.7]} 24. h5 {[%clk 0:00:40.4]} 24... Bg7 {[%clk
0:00:36.3]} 25. Bf6 {[%clk 0:00:39.6]} 25... Nc6 {[%clk 0:00:32.9]} 26. Qf4
{[%clk 0:00:34.6]} 26... Bxf6 {[%clk 0:00:33.6]} 27. Qxf6 {[%clk 0:00:35.7]}
27... Qd8 {[%clk 0:00:32.2]} 28. Qxd8+ {[%clk 0:00:29.7]} 28... Rcxd8 {[%clk
0:00:32.5]} 29. d5 {[%clk 0:00:31.6]} 29... exd5 {[%clk 0:00:25.7]} 30. Nxd5
{[%clk 0:00:32.5]} 30... Kg7 {[%clk 0:00:25.7]} 31. hxg6 {[%clk 0:00:23.2]}
31... hxg6 {[%clk 0:00:26.3]} 32. f4 {[%clk 0:00:17.8]} 32... Ne7 {[%clk
0:00:19.3]} 33. Ne3 {[%clk 0:00:18]} 33... Nc6 {[%clk 0:00:18.2]} 34. Rxd7
{[%clk 0:00:16.4]} 34... Rxd7 {[%clk 0:00:20.1]} 35. Bd5 {[%clk 0:00:17.9]}
35... Nd4 {[%clk 0:00:20.7]} 36. Rd1 {[%clk 0:00:14.7]} 36... Ne2+ {[%clk
0:00:21]} 37. Kf2 {[%clk 0:00:15.9]} 37... Bxd5 {[%clk 0:00:21.7]} 38. Kxe2
{[%clk 0:00:13.6]} 38... Be6 {[%clk 0:00:19.6]} 39. Rxd7 {[%clk 0:00:12.6]}
39... Bxd7 {[%clk 0:00:21.5]} 40. Kd3 {[%clk 0:00:13.7]} 40... Kf6 {[%clk
0:00:22.6]} 41. g4 {[%clk 0:00:14.9]} 41... Ke6 {[%clk 0:00:23.6]} 42. Kd4
{[%clk 0:00:15.2]} 42... Bc6 {[%clk 0:00:24.6]} 43. f5+ {[%clk 0:00:13.8]} 43...
gxf5 {[%clk 0:00:25.9]} 44. gxf5+ {[%clk 0:00:13.8]} 44... Kd6 {[%clk
0:00:27.2]} 45. Ng4 {[%clk 0:00:13.4]} 45... Bd7 {[%clk 0:00:28.4]} 46. Nh6
{[%clk 0:00:11.8]} 46... f6 {[%clk 0:00:27.9]} 47. Ke4 {[%clk 0:00:12.9]} 47...
Bc6+ {[%clk 0:00:28.7]} 48. Kf4 {[%clk 0:00:14.1]} 48... Ke7 {[%clk 0:00:29.6]}
49. Ng4 {[%clk 0:00:14]} 49... Bd5 {[%clk 0:00:30.7]} 50. Ne3 {[%clk 0:00:14.9]}
50... Bf7 {[%clk 0:00:31.8]} 51. Ke4 {[%clk 0:00:16]} 51... Kd6 {[%clk
0:00:32.4]} 52. Ng4 {[%clk 0:00:16.7]} 52... Ke7 {[%clk 0:00:33.7]} 53. Nh6
{[%clk 0:00:17.3]} 53... Bh5 {[%clk 0:00:33.3]} 54. Kd4 {[%clk 0:00:15.5]} 54...
Bf3 {[%clk 0:00:30.7]} 55. Ke3 {[%clk 0:00:13.3]} 55... Bh5 {[%clk 0:00:31.6]}
56. Kf4 {[%clk 0:00:14.2]} 56... Kf8 {[%clk 0:00:29.2]} 57. b4 {[%clk 0:00:11]}
57... Ke7 {[%clk 0:00:26.2]} 58. a4 {[%clk 0:00:11.4]} 58... Kd6 {[%clk
0:00:24.8]} 59. a5 {[%clk 0:00:12.6]} 59... bxa5 {[%clk 0:00:23.6]} 60. bxa5
{[%clk 0:00:14.5]} 60... Ke7 {[%clk 0:00:24.7]} 61. Ng4 {[%clk 0:00:12.5]} 61...
Bxg4 {[%clk 0:00:21.8]} 62. Kxg4 {[%clk 0:00:14.4]} 62... Kd6 {[%clk 0:00:23.1]}
63. Kh5 {[%clk 0:00:15.7]} 63... Kd5 {[%clk 0:00:23.9]} 64. Kg6 {[%clk
0:00:15.7]} 64... Ke5 {[%clk 0:00:24.9]} 65. a6 {[%clk 0:00:17]} 1-0

[Event "*** Titled Tuesday Blitz"]
[Site "Chess.com"]
[Date "2019.04.02"]
[Round "3"]
[White "vladimirdamjanovic"]
[Black "Yurovskykh_Oleksandr"]
[Result "1-0"]
[WhiteElo "2550"]
[BlackElo "2508"]
[TimeControl "180+2"]
[EndTime "14:38:03 PDT"]
[Termination "vladimirdamjanovic won by resignation"]

1. d4 {[%clk 0:02:09.8]} 1... Nf6 {[%clk 0:02:57.2]} 2. Nf3 {[%clk 0:02:10.7]}
2... d5 {[%clk 0:02:57.5]} 3. Bf4 {[%clk 0:02:10.2]} 3... c5 {[%clk 0:02:58.1]}
4. c3 {[%clk 0:02:08.2]} 4... Qb6 {[%clk 0:02:58.2]} 5. Qb3 {[%clk 0:02:08.7]}
5... c4 {[%clk 0:02:59]} 6. Qxb6 {[%clk 0:02:06.9]} 6... axb6 {[%clk 0:03:00.9]}
7. a3 {[%clk 0:02:08.3]} 7... Nc6 {[%clk 0:02:59.6]} 8. Nbd2 {[%clk 0:02:08.9]}
8... b5 {[%clk 0:02:58.5]} 9. Rc1 {[%clk 0:02:05.3]} 9... h6 {[%clk 0:02:54.2]}
10. h3 {[%clk 0:02:00.8]} 10... Bf5 {[%clk 0:02:50.9]} 11. g4 {[%clk 0:02:00.8]}
11... Bh7 {[%clk 0:02:51.7]} 12. Bg2 {[%clk 0:02:02.2]} 12... e6 {[%clk
0:02:52.1]} 13. Ne5 {[%clk 0:01:59.1]} 13... Nxe5 {[%clk 0:02:43.6]} 14. Bxe5
{[%clk 0:01:57.6]} 14... Be7 {[%clk 0:02:40]} 15. f4 {[%clk 0:01:43.1]} 15...
O-O {[%clk 0:02:35.1]} 16. Bxf6 {[%clk 0:01:42]} 16... Bxf6 {[%clk 0:02:33.3]}
17. e4 {[%clk 0:01:43.4]} 17... dxe4 {[%clk 0:02:26.1]} 18. Bxe4 {[%clk
0:01:42.3]} 18... Bxe4 {[%clk 0:02:18.5]} 19. Nxe4 {[%clk 0:01:44.2]} 19... Rfd8
{[%clk 0:02:16.2]} 20. Ke2 {[%clk 0:01:25.4]} 20... Rd5 {[%clk 0:02:16.6]} 21.
h4 {[%clk 0:01:19.2]} 21... Be7 {[%clk 0:02:14.3]} 22. Rcf1 {[%clk 0:01:02.3]}
22... h5 {[%clk 0:02:06.1]} 23. g5 {[%clk 0:00:35]} 23... g6 {[%clk 0:01:47.2]}
24. Rc1 {[%clk 0:00:22.1]} 24... Kf8 {[%clk 0:01:38.3]} 25. Ra1 {[%clk
0:00:07.8]} 25... Ke8 {[%clk 0:01:36.4]} 26. Rhg1 {[%clk 0:00:04.9]} 26... Kd7
{[%clk 0:01:36.2]} 27. Nd2 {[%clk 0:00:06.4]} 27... Bd6 {[%clk 0:01:34.3]} 28.
Ke3 {[%clk 0:00:06.3]} 28... Rf5 {[%clk 0:01:34.3]} 29. Rgf1 {[%clk 0:00:05.2]}
29... Kc6 {[%clk 0:01:27]} 30. Ne4 {[%clk 0:00:02.5]} 30... Be7 {[%clk
0:01:14.4]} 31. Rac1 {[%clk 0:00:02.9]} 31... Kb6 {[%clk 0:01:10.1]} 32. Ng3
{[%clk 0:00:03.8]} 32... Rd5 {[%clk 0:01:10.2]} 33. Ne4 {[%clk 0:00:05.2]} 33...
Rad8 {[%clk 0:01:09.8]} 34. Rcd1 {[%clk 0:00:03.9]} 34... Ka5 {[%clk 0:01:03.7]}
35. Nd2 {[%clk 0:00:02.6]} 35... Ka4 {[%clk 0:01:02.9]} 36. Rg1 {[%clk
0:00:03.1]} 36... Bd6 {[%clk 0:01:03.2]} 37. Ke4 {[%clk 0:00:03.4]} 37... Ka5
{[%clk 0:00:59.5]} 38. a4 {[%clk 0:00:03.1]} 38... Rc8 {[%clk 0:00:55.5]} 39.
axb5 {[%clk 0:00:04.1]} 39... Rxb5 {[%clk 0:00:57.4]} 40. Ra1+ {[%clk
0:00:05.5]} 40... Kb6 {[%clk 0:00:58.9]} 41. Ra2 {[%clk 0:00:07]} 41... Ra5
{[%clk 0:00:18.9]} 42. Rga1 {[%clk 0:00:04]} 42... Rxa2 {[%clk 0:00:19.6]} 43.
Rxa2 {[%clk 0:00:05.9]} 43... Kb5 {[%clk 0:00:15.8]} 44. Ra7 {[%clk 0:00:06.8]}
44... Rc7 {[%clk 0:00:15.1]} 45. Nf3 {[%clk 0:00:05.6]} 45... Kb6 {[%clk
0:00:14.8]} 46. Ra8 {[%clk 0:00:06.8]} 46... Kc6 {[%clk 0:00:15.6]} 47. Ne5+
{[%clk 0:00:04.1]} 47... Bxe5 {[%clk 0:00:16.3]} 48. Kxe5 {[%clk 0:00:06]} 48...
b5 {[%clk 0:00:09.6]} 49. Ra6+ {[%clk 0:00:02.9]} 49... Kd7 {[%clk 0:00:09.6]}
50. Kf6 {[%clk 0:00:02.8]} 50... Rb7 {[%clk 0:00:09.1]} 51. Kxf7 {[%clk
0:00:02.8]} 51... b4 {[%clk 0:00:10.5]} 52. Kxg6 {[%clk 0:00:03.2]} 52... bxc3
{[%clk 0:00:11]} 53. bxc3 {[%clk 0:00:05.1]} 53... Rb3 {[%clk 0:00:12.6]} 54.
Kf6 {[%clk 0:00:05.1]} 54... Rxc3 {[%clk 0:00:13.8]} 55. g6 {[%clk 0:00:06.6]}
55... Rf3 {[%clk 0:00:13.3]} 56. g7 {[%clk 0:00:03.3]} 56... Rxf4+ {[%clk
0:00:14.6]} 57. Kg6 {[%clk 0:00:04.8]} 57... Rg4+ {[%clk 0:00:14.9]} 58. Kh7
{[%clk 0:00:06.4]} 58... c3 {[%clk 0:00:07.2]} 59. g8=Q {[%clk 0:00:07.3]} 59...
Rxg8 {[%clk 0:00:08.5]} 60. Kxg8 {[%clk 0:00:09.2]} 60... c2 {[%clk 0:00:07.4]}
61. Ra1 {[%clk 0:00:10.2]} 61... Kd6 {[%clk 0:00:09]} 62. Rc1 {[%clk 0:00:08.8]}
62... Kd5 {[%clk 0:00:10.9]} 63. Rxc2 {[%clk 0:00:10.2]} 1-0